bitfinex-derivatives/quotes_SOLF0:USTF0_20241120
["timestamp","ask_amount","ask_price","bid_price","bid_amount"]
[1732123163727,2.1332,234.14,234.02,20.69813212]
[1732123164134,2.94,234.15,234.02,3.9171]
[1732123165025,19.72103212,234.15,234.02,3.9171]
[1732123166233,19.72103212,234.15,234.02,2.6211]
[1732123166734,19.72103212,234.15,233.96,1.2595]
[1732123166735,16.78103212,234.11,233.96,1.2595]
[1732123167033,16.78103212,234.07,233.94,1.3115]
[1732123167238,2.1346,233.99,233.94,1.3115]
[1732123167427,2.96,233.99,233.88,1.2595]
[1732123167726,2.96,233.99,233.81,1.254]
[1732123168030,16.78103212,234.02,233.86,34.80519444]
[1732123168231,16.78103212,233.89,233.56,12.79]
[1732123168430,16.78103212,233.89,233.51,299.34439204]
[1732123168431,2.96,233.88,233.71,2.5655]
[1732123168932,2.1361,233.83,233.73,2.1369]
[1732123169132,16.78103212,233.85,233.71,2.5655]
[1732123169435,16.78103212,233.81,233.71,1.3115]
[1732123169630,2.96,233.8,233.71,1.3115]
[1732123170240,2.96,233.8,233.62,1.2786]
[1732123170431,2.96,233.8,233.62,2.5025]
[1732123171335,16.78103212,233.81,233.67,2.1374]
[1732123171536,2.94,233.8,233.62,2.5025]
[1732123172036,16.78103212,233.81,233.63,16.78103212]
[1732123172231,2.94,233.8,233.63,16.78103212]
[1732123172438,2.94,233.8,233.68,2.1374]
[1732123172635,2.94,233.8,233.63,16.78103212]
[1732123173032,2.94,233.79,233.71,2.1371]
[1732123173536,2.1365,233.78,233.68,2.1373]
[1732123173737,2.94,233.79,233.68,2.1373]
[1732123174837,16.78103212,233.77,233.62,1.2239]
[1732123175230,16.78103212,233.77,233.62,3.3618]
[1732123175231,2.1372,233.7,233.62,3.3618]
[1732123175439,2.94,233.69,233.62,3.3618]
[1732123175836,5.0774,233.69,233.62,1.2239]
[1732123176033,5.0774,233.69,233.6,2.1381]
[1732123176237,19.72103212,233.69,233.53,2.6224]
[1732123176441,2.1376,233.66,233.58,2.1382]
[1732123176743,19.72103212,233.69,233.58,2.1382]
[1732123176939,2.1375,233.67,233.53,2.6224]
[1732123177236,16.78103212,233.65,233.53,2.6224]
[1732123177438,2.94,233.64,233.53,2.6224]
[1732123177645,2.94,233.64,233.46,1.2524]
[1732123178137,2.1381,233.6,233.46,1.2524]
[1732123178837,16.78103212,233.6,233.54,2.1386]
[1732123179039,2.94,233.59,233.54,2.1386]
[1732123179639,2.94,233.59,233.55,2.1385]
[1732123179838,16.78103212,233.68,233.49,2.94]
[1732123180040,2.94,233.67,233.51,16.78103212]
[1732123180537,19.72103212,233.67,233.51,16.78103212]
[1732123180839,19.72103212,233.67,233.46,1.2524]
[1732123180840,19.72103212,233.67,233.47,16.78103212]
[1732123181544,0.7263,233.76,233.51,16.78103212]
[1732123181847,19.72103212,233.75,233.59,16.78103212]
[1732123182032,19.72103212,233.75,233.57,2.94]
[1732123182231,19.72103212,233.75,233.5,2.94]
[1732123182435,2.1369,233.74,233.66,2.1375]
[1732123182631,19.72103212,233.75,233.66,2.1375]
[1732123182832,16.78103212,233.75,233.57,19.72103212]
[1732123183035,2.94,233.75,233.7,2.1372]
[1732123183439,2.94,233.75,233.61,16.78103212]
[1732123183644,2.94,233.75,233.62,1.2461]
[1732123186039,0.7263,233.76,233.73,2.1369]
[1732123186239,0.7263,233.76,233.65,16.78103212]
[1732123186445,0.7263,233.76,233.65,19.72103212]
[1732123187239,0.7263,233.76,233.74,2.1368]
[1732123188349,2.94,233.81,233.74,2.1368]
[1732123188539,2.94,233.86,233.69,16.78103212]
[1732123188747,2.94,233.92,233.73,16.78103212]
[1732123188941,2.94,233.92,233.86,2.1357]
[1732123190148,5.0752,233.92,233.86,2.1357]
[1732123190341,16.78103212,233.89,233.78,1.2315]
[1732123191637,2.94,233.92,233.78,1.2315]
[1732123192541,16.78103212,233.89,233.78,1.2315]
[1732123193148,2.1358,233.86,233.78,1.2315]
[1732123193547,2.1358,233.86,233.8,2.1363]
[1732123194348,2.94,233.92,233.78,1.2315]
[1732123195245,1.3166,233.95,233.78,1.2315]
[1732123195445,4.1468,233.96,233.78,1.2315]
[1732123196146,2.94,233.96,233.78,1.2315]
[1732123196343,2.94,233.96,233.79,2.94]
[1732123197243,2.1352,233.92,233.87,2.1356]
[1732123197548,16.78103212,233.93,233.78,1.2315]
[1732123197748,2.94,233.92,233.78,1.2315]
[1732123198351,16.78103212,233.89,233.78,1.2315]
[1732123199045,16.78103212,233.89,233.78,3.3679]
[1732123199240,16.78103212,233.89,233.74,1.2429]
[1732123199445,16.78103212,233.89,233.77,2.1365]
[1732123199846,16.78103212,233.89,233.74,1.2429]
[1732123200442,16.78103212,233.89,233.71,1.3363]
[1732123200747,16.78103212,233.85,233.71,1.3363]
[1732123201052,2.94,233.84,233.7,1.307]
[1732123201248,2.1367,233.76,233.7,2.1371]
[1732123201548,2.1367,233.76,233.66,4.2763]
[1732123201549,4.1893,233.84,233.66,4.2763]
[1732123201853,4.1893,233.84,233.71,2.1371]
[1732123202058,4.1893,233.84,233.66,4.2763]
[1732123202843,2.1368,233.75,233.69,2.1372]
[1732123203048,2.94,233.77,233.66,1.3363]
[1732123203248,19.72103212,233.77,233.61,1.2858]
[1732123203748,19.72103212,233.77,233.6,1.3148]
[1732123203953,16.78103212,233.73,233.54,2.5832]
[1732123204249,16.78103212,233.73,233.58,2.1383]
[1732123204454,1.2234,233.72,233.58,2.1383]
[1732123204748,1.2234,233.72,233.54,2.5832]
[1732123205153,1.2234,233.72,233.57,16.78103212]
[1732123205357,19.72103212,233.77,233.57,16.78103212]
[1732123205855,19.72103212,233.77,233.63,2.1378]
[1732123206047,16.78103212,233.73,233.56,2.94]
[1732123206248,18.94761283,233.73,233.54,2.5832]
[1732123206449,2.1378,233.64,233.59,2.1382]
[1732123206650,2.1378,233.64,233.54,2.5832]
[1732123207249,2.1381,233.61,233.51,1.2135]
[1732123207451,2.94,233.65,233.51,1.2135]
[1732123207852,2.94,233.65,233.44,1.2092]
[1732123207853,16.78103212,233.61,233.44,1.2092]
[1732123208048,16.78103212,233.57,233.42,34.87029282]
[1732123208253,2.94,233.56,233.43,2.1396]
[1732123208555,2.94,233.56,233.36,16.78103212]
[1732123208556,16.78103212,233.53,233.35,46.89626136]
[1732123208858,16.78103212,233.53,233.38,2.1401]
[1732123209056,16.78103212,233.53,233.33,16.78103212]
[1732123209253,2.1395,233.45,233.33,16.78103212]
[1732123209552,1.303,233.52,233.39,2.14]
[1732123209553,2.94,233.46,233.39,2.14]
[1732123209758,7.6915,233.52,233.38,16.78103212]
[1732123210054,5.5526,233.52,233.34,16.78103212]
[1732123210249,5.5526,233.52,233.41,2.1398]
[1732123210453,2.139,233.51,233.38,16.78103212]
[1732123210658,5.5526,233.52,233.42,2.1397]
[1732123210955,5.5526,233.52,233.34,16.78103212]
[1732123211154,5.5526,233.52,233.4,2.1399]
[1732123211367,2.1394,233.47,233.34,16.78103212]
[1732123211656,5.5526,233.52,233.34,16.78103212]
[1732123211958,2.94,233.52,233.38,16.78103212]
[1732123212160,2.5049,233.63,233.42,16.78103212]
[1732123212359,2.1384,233.57,233.43,4.2775]
[1732123212560,16.78103212,233.6,233.43,4.2775]
[1732123213153,16.78103212,233.56,233.38,19.72103212]
[1732123213463,2.1393,233.47,233.39,2.14]
[1732123213658,2.94,233.49,233.33,1.3375]
[1732123213866,2.94,233.49,233.3,2.94]
[1732123213867,16.78103212,233.48,233.3,2.94]
[1732123214156,19.28593212,233.48,233.29,16.78103212]
[1732123215052,2.1399,233.38,233.31,2.1406]
[1732123215354,2.94,233.42,233.26,2.94]
[1732123215561,2.1398,233.4,233.31,2.1405]
[1732123215865,2.94,233.42,233.31,2.1405]
[1732123216059,16.78103212,233.4,233.24,3.9255]
[1732123216251,16.78103212,233.4,233.21,16.78103212]
[1732123216761,2.94,233.42,233.21,16.78103212]
[1732123216959,2.94,233.42,233.25,16.78103212]
[1732123217359,2.94,233.42,233.25,19.72103212]
[1732123218563,2.94,233.42,233.21,16.78103212]
[1732123218859,2.94,233.42,233.22,2.94]
[1732123219060,16.78103212,233.4,233.21,16.78103212]
[1732123219261,2.1402,233.35,233.28,2.1408]
[1732123219471,1.3059,233.39,233.21,16.78103212]
[1732123219868,2.1401,233.36,233.28,2.1407]
[1732123220165,2.1401,233.36,233.21,16.78103212]
[1732123220352,1.3059,233.39,233.21,16.78103212]
[1732123220864,2.94,233.41,233.25,16.78103212]
[1732123221059,2.94,233.44,233.26,4.2014]
[1732123221358,16.78103212,233.31,233.16,2.09166162]
[1732123221560,16.78103212,233.31,233.12,1.2207]
[1732123221561,2.94,233.3,233.12,1.2207]
[1732123221764,6.7957,233.3,233.12,1.2207]
[1732123222163,2.1411,233.26,233.12,1.2207]
[1732123222360,6.7957,233.3,233.12,1.2207]
[1732123222559,2.1411,233.25,233.18,2.1417]
[1732123223067,6.7957,233.3,233.12,1.2207]
[1732123223563,16.78103212,233.27,233.12,1.2207]
[1732123223758,16.78103212,233.27,233.08,19.24913212]
[1732123223759,2.1416,233.2,233.08,19.24913212]
[1732123224067,2.94,233.2,233.08,19.24913212]
[1732123224761,2.94,233.2,233.08,2.4681]
[1732123225357,3.8557,233.3,233.11,27.51808147]
[1732123225660,2.1409,233.28,233.11,27.51808147]
[1732123226060,2.1409,233.28,233.2,2.1415]
[1732123226259,6.7957,233.3,233.15,27.51808147]
[1732123226457,6.7957,233.3,233.16,1.3036]
[1732123226762,4.2707,233.3,233.16,1.3036]
[1732123227158,2.94,233.31,233.16,1.3036]
[1732123228062,2.1403,233.34,233.19,27.51808147]
[1732123228063,2.94,233.34,233.19,27.51808147]
[1732123228458,2.94,233.34,233.2,1.302]
[1732123229269,2.94,233.34,233.28,2.1407]
[1732123229465,2.94,233.34,233.2,1.302]
[1732123229766,2.94,233.34,233.29,2.1407]
[1732123230168,5.0803,233.34,233.29,2.1407]
[1732123230372,2.94,233.34,233.29,2.1407]
[1732123231171,2.94,233.34,233.25,2.1411]
[1732123231172,2.1406,233.31,233.25,2.1411]
[1732123231676,2.94,233.34,233.2,1.302]
[1732123231875,2.1405,233.32,233.26,2.141]
[1732123232065,2.94,233.34,233.2,1.302]
[1732123232269,2.94,233.34,233.29,2.1407]
[1732123232474,2.94,233.34,233.2,1.302]
[1732123232475,3.02,233.34,233.2,1.302]
[1732123232968,3.02,233.34,233.21,1.2681]
[1732123234577,2.1405,233.32,233.24,2.1411]
[1732123234775,3.02,233.34,233.17,3.02]
[1732123235078,31.31268147,233.31,233.16,1.3036]
[1732123235872,31.31268147,233.31,233.22,2.1414]
[1732123236070,31.31268147,233.31,233.16,1.3036]
[1732123236275,31.31268147,233.31,233.13,2.6041]
[1732123236679,27.51808147,233.27,233.08,1.2984]
[1732123236877,3.02,233.26,233.08,1.2984]
[1732123237075,2.1415,233.22,233.08,1.2984]
[1732123237277,3.02,233.26,233.08,1.2984]
[1732123237472,2.1414,233.23,233.13,2.1422]
[1732123237672,3.02,233.26,233.08,1.2984]
[1732123237875,27.51808147,233.23,233.04,2.5586]
[1732123238082,2.1419,233.17,233.12,2.1423]
[1732123238378,3.02,233.17,233.06,27.51808147]
[1732123238875,3.02,233.2,233.06,27.51808147]
[1732123239180,2.1411,233.25,233.2,2.1416]
[1732123239481,5.1611,233.25,233.2,2.1416]
[1732123239681,5.1611,233.25,233.1,27.51808147]
[1732123239875,3.02,233.25,233.1,27.51808147]
[1732123240073,31.79768147,233.4,233.14,27.51808147]
[1732123240074,27.51808147,233.32,233.14,27.51808147]
[1732123240273,3.02,233.3,233.15,1.3225]
[1732123241175,2.1409,233.28,233.15,1.3225]
[1732123241379,3.02,233.3,233.15,1.3225]
[1732123241679,2.1408,233.28,233.19,2.1416]
[1732123241879,2.1408,233.28,233.15,1.3225]
[1732123243077,2.1408,233.28,233.18,2.1417]
[1732123243277,2.1408,233.28,233.15,1.3225]
[1732123243583,2.1409,233.27,233.15,1.3225]
[1732123243778,3.02,233.3,233.15,1.3225]
[1732123244277,3.02,233.3,233.21,2.1414]
[1732123244683,2.1413,233.23,233.11,3.02]
[1732123244979,3.02,233.23,233.08,16.93322632]
[1732123245984,5.1613,233.23,233.08,16.93322632]
[1732123246682,3.02,233.23,233.08,16.93322632]
[1732123246882,16.93322632,233.32,233.12,16.93322632]
[1732123247084,3.02,233.28,233.16,16.93322632]
[1732123247483,4.278,233.49,233.16,16.93322632]
[1732123247782,1.3381,233.36,233.16,16.93322632]
[1732123248087,1.3381,233.36,233.17,2.5263]
[1732123248088,16.93322632,233.33,233.17,2.5263]
[1732123248681,1.3386,233.32,233.17,2.5263]
[1732123248984,1.3386,233.32,233.09,23.44813068]
[1732123248985,2.1415,233.21,233.15,2.142]
[1732123249488,3.02,233.22,233.08,16.93322632]
[1732123249688,2.1417,233.19,233.13,2.1421]
[1732123250186,2.1416,233.2,233.13,2.1422]
[1732123250383,2.1416,233.2,233.08,16.93322632]
[1732123251181,3.02,233.22,233.15,2.142]
[1732123251182,5.1615,233.22,233.15,2.142]
[1732123251386,3.02,233.22,233.08,16.93322632]
[1732123252789,5.1615,233.22,233.08,16.93322632]
[1732123252984,62.08024712,233.5,233.08,16.93322632]
[1732123253288,2.1413,233.23,233.08,16.93322632]
[1732123253486,3.02,233.26,233.08,16.93322632]
[1732123253688,3.02,233.26,233.12,16.93322632]
[1732123253890,2.1411,233.25,233.2,2.1416]
[1732123254080,2.1411,233.25,233.12,16.93322632]
[1732123254283,2.141,233.27,233.21,2.1414]
[1732123254484,3.02,233.32,233.21,2.1414]
[1732123254683,16.93322632,233.33,233.12,16.93322632]
[1732123254888,3.02,233.32,233.12,16.93322632]
[1732123255083,1.3132,233.34,233.16,16.93322632]
[1732123255285,2.119476,233.38,233.17,2.4513]
[1732123255490,2.1406,233.31,233.25,2.1411]
[1732123255786,2.1406,233.31,233.18,1.3112]
[1732123255991,2.1405,233.32,233.23,2.1413]
[1732123256284,16.93322632,233.36,233.18,1.3112]
[1732123256690,2.1406,233.31,233.18,1.3112]
[1732123257189,3.02,233.38,233.2,16.93322632]
[1732123257590,16.93322632,233.36,233.18,1.3112]
[1732123257888,2.1406,233.31,233.18,1.3112]
[1732123258085,16.93322632,233.36,233.18,1.3112]
[1732123258690,16.93322632,233.36,233.24,2.1412]
[1732123258887,16.93322632,233.36,233.18,4.3312]
[1732123259888,16.93322632,233.36,233.18,21.26442632]
[1732123260192,3.02,233.38,233.18,21.26442632]
[1732123260393,16.93322632,233.36,233.18,4.3312]
[1732123260595,2.141,233.27,233.21,2.1414]
[1732123260889,5.18414517,233.38,233.17,2.4513]
[1732123260890,2.98,233.31,233.17,2.4513]
[1732123261193,2.1417,233.2,233.15,2.142]
[1732123261499,16.93322632,233.28,233.12,1.2999]
[1732123261685,16.93322632,233.28,233.14,2.1421]
[1732123261889,16.93322632,233.28,233.12,1.2999]
[1732123262196,16.93322632,233.28,233.09,2.5549]
[1732123262394,4.3148,233.3,233.05,26.42813068]
[1732123262395,16.93322632,233.24,233.05,26.42813068]
[1732123262583,4.2384,233.23,233.05,8.84203267]
[1732123262785,4.2384,233.23,233.05,2.98]
[1732123262983,4.2384,233.23,233.1,2.1425]
[1732123263398,2.142,233.16,233.1,2.1425]
[1732123263592,4.2384,233.23,233.1,2.1425]
[1732123263796,16.93322632,233.2,233.04,18.23312632]
[1732123263989,2.1424,233.12,233.04,1.2999]
[1732123264187,19.91322632,233.16,232.99,5.86203267]
[1732123264489,2.98,233.15,233.0,16.93322632]
[1732123264686,2.1424,233.12,233.0,16.93322632]
[1732123265193,2.1424,233.11,233.0,16.93322632]
[1732123265391,2.98,233.15,233.0,16.93322632]
[1732123266198,2.98,233.15,233.04,2.143]
[1732123266394,2.1422,233.13,233.0,16.93322632]
[1732123266592,2.98,233.15,233.0,16.93322632]
[1732123267196,2.4892,233.19,233.0,16.93322632]
[1732123267803,19.91322632,233.2,233.06,2.1429]
[1732123267998,2.1419,233.17,233.0,16.93322632]
[1732123268295,19.91322632,233.2,233.0,16.93322632]
[1732123268493,19.91322632,233.2,233.06,2.1429]
[1732123268494,2.1423,233.13,233.06,2.1429]
[1732123268696,19.91322632,233.2,233.06,2.1429]
[1732123268894,19.91322632,233.2,233.01,2.98]
[1732123269093,19.91322632,233.2,232.96,7.07463267]
[1732123269094,2.1427,233.08,233.03,2.1431]
[1732123269299,2.98,233.13,232.96,18.14582632]
[1732123269896,16.93322632,233.08,232.92,5.86203267]
[1732123270204,2.1432,233.02,232.96,2.1438]
[1732123270501,2.98,233.03,232.96,2.1438]
[1732123270698,2.98,233.03,232.9,1.319]
[1732123270899,2.98,233.03,232.96,2.1438]
[1732123271099,2.98,233.03,232.9,1.319]
[1732123271298,1.3027,233.07,233.02,2.1432]
[1732123271504,1.3027,233.07,232.92,16.93322632]
[1732123271505,2.98,233.09,232.96,16.93322632]
[1732123271702,1.3027,233.15,233.0,16.93322632]
[1732123271703,4.2827,233.15,233.0,16.93322632]
[1732123272008,16.93322632,233.2,233.01,6.8]
[1732123272303,16.93322632,233.2,233.04,16.93322632]
[1732123272505,16.93322632,233.2,233.01,6.8]
[1732123273200,16.93322632,233.2,233.01,3.82]
[1732123273400,16.93322632,233.2,233.06,2.1428]
[1732123273401,2.1418,233.18,233.06,2.1428]
[1732123273607,16.93322632,233.2,233.01,3.82]
[1732123274207,16.93322632,233.2,233.1,2.1425]
[1732123274406,2.98,233.27,233.09,16.93322632]
[1732123274704,2.98,233.27,233.11,27.50871985]
[1732123275105,2.98,233.27,233.12,2.6112]
[1732123275305,5.1209,233.27,233.19,2.1416]
[1732123275506,2.1409,233.27,233.19,2.1416]
[1732123275800,2.98,233.29,233.13,1.2518]
[1732123276002,2.5982,233.36,233.2,27.50871985]
[1732123276207,27.50871985,233.39,233.21,2.98]
[1732123276408,27.71859985,233.43,233.31,2.1405]
[1732123276607,27.71859985,233.43,233.27,2.98]
[1732123276808,29.85809985,233.43,233.34,2.1403]
[1732123277109,27.50871985,233.39,233.25,2.6433]
[1732123277306,0.20988,233.43,233.17,4.2318]
[1732123277307,27.50871985,233.35,233.17,4.2318]
[1732123277505,2.1408,233.29,233.2,2.1415]
[1732123277909,4.1936,233.34,233.17,1.2518]
[1732123278103,27.50871985,233.31,233.17,3.3936]
[1732123278608,27.50871985,233.31,233.17,1.2518]
[1732123278910,4.1936,233.34,233.17,1.2518]
[1732123279311,27.50871985,233.31,233.17,1.2518]
[1732123279512,27.50871985,233.31,233.16,2.98]
[1732123279513,27.50871985,233.31,233.14,2.6433]
[1732123279714,27.50871985,233.31,233.15,2.142]
[1732123280209,27.50871985,233.27,233.08,28.82011985]
[1732123280417,2.1419,233.17,233.1,2.1424]
[1732123280719,4.278,233.26,233.1,2.1424]
[1732123280914,2.1423,233.12,233.05,2.1429]
[1732123281115,2.98,233.13,233.04,34.91971695]
[1732123281317,2.98,233.12,233.04,34.91971695]
[1732123281518,2.1425,233.1,233.04,34.91971695]
[1732123281716,2.98,233.12,232.99,1.2469]
[1732123282417,2.1424,233.11,233.02,2.1431]
[1732123282618,2.98,233.12,233.02,2.1431]
[1732123283117,2.98,233.12,232.95,1.254]
[1732123283414,2.98,233.12,232.94,1.3114]
[1732123283619,2.98,233.12,232.95,1.254]
[1732123284414,2.98,233.15,233.04,27.50871985]
[1732123284621,6.3996,233.2,233.09,27.50871985]
[1732123284817,4.258,233.2,233.09,27.50871985]
[1732123285214,2.98,233.2,233.12,2.1423]
[1732123285416,2.98,233.2,233.09,27.50871985]
[1732123285816,2.98,233.2,233.13,2.1421]
[1732123286016,4.2902,233.25,233.09,27.50871985]
[1732123286617,2.98,233.24,233.09,27.50871985]
[1732123286918,2.98,233.28,233.17,27.50871985]
[1732123287115,2.98,233.29,233.17,27.50871985]
[1732123287315,2.98,233.29,233.16,2.1419]
[1732123287518,2.98,233.29,233.13,30.48871985]
[1732123287717,2.98,233.29,233.17,27.50871985]
[1732123287918,2.98,233.29,233.23,2.1413]
[1732123288115,2.98,233.35,233.21,27.50871985]
[1732123288916,2.98,233.35,233.16,27.50871985]
[1732123288917,1.3099,233.41,233.25,27.50871985]
[1732123289122,2.6703,233.45,233.29,27.50871985]
[1732123289322,2.98,233.47,233.33,27.50871985]
[1732123289620,2.98,233.51,233.37,27.50871985]
[1732123289920,2.98,233.51,233.34,2.98]
[1732123290124,2.139,233.49,233.41,2.1396]
[1732123290618,3.06,233.54,233.35,2.98]
[1732123290826,3.28112,233.46,233.29,27.50871985]
[1732123291023,3.28112,233.46,233.25,30.56871985]
[1732123291223,2.14,233.38,233.25,30.56871985]
[1732123291528,1.2584,233.45,233.29,27.50871985]
[1732123291728,2.1397,233.41,233.31,2.1405]
[1732123291929,3.06,233.43,233.29,27.50871985]
[1732123292420,2.1398,233.4,233.29,27.50871985]
[1732123292929,3.06,233.43,233.33,2.1403]
[1732123292930,2.1397,233.41,233.33,2.1403]
[1732123293225,27.50871985,233.39,233.23,1.2809]
[1732123293435,30.56871985,233.43,233.23,1.2809]
[1732123293619,30.56871985,233.43,233.25,27.50871985]
[1732123293818,3.06,233.43,233.32,2.1404]
[1732123294026,2.1398,233.4,233.27,3.06]
[1732123294324,3.06,233.43,233.29,27.50871985]
[1732123294526,3.06,233.43,233.27,3.06]
[1732123294722,1.2584,233.45,233.29,27.50871985]
[1732123295326,2.14,233.38,233.3,2.1406]
[1732123295524,1.2584,233.45,233.25,27.50871985]
[1732123295829,2.1402,233.36,233.28,2.1408]
[1732123296029,3.06,233.37,233.23,1.2809]
[1732123296226,3.06,233.36,233.17,27.50871985]
[1732123296428,27.50871985,233.35,233.17,27.50871985]
[1732123297029,3.06,233.34,233.17,27.50871985]
[1732123297333,3.06,233.33,233.17,27.50871985]
[1732123297537,2.1406,233.31,233.22,2.1413]
[1732123297828,3.06,233.33,233.17,27.50871985]
[1732123298028,27.50871985,233.39,233.21,27.50871985]
[1732123298331,3.06,233.34,233.25,2.141]
[1732123298524,27.50871985,233.43,233.21,27.50871985]
[1732123298728,3.82584217,233.42,233.22,1.296]
[1732123299126,2.14,233.38,233.25,27.50871985]
[1732123299923,2.14,233.38,233.31,2.1405]
[1732123300130,3.06,233.42,233.25,27.50871985]
[1732123300325,3.06,233.41,233.25,27.50871985]
[1732123300525,3.06,233.41,233.33,2.1403]
[1732123300726,3.06,233.41,233.26,2.5808]
[1732123301129,3.06,233.41,233.29,2.1407]
[1732123301543,2.1402,233.36,233.29,2.1407]
[1732123301744,3.06,233.41,233.26,2.5808]
[1732123302042,2.1401,233.36,233.26,2.5808]
[1732123302231,3.06,233.41,233.26,2.5808]
[1732123302737,2.1399,233.38,233.26,2.5808]
[1732123302935,3.06,233.41,233.3,2.1406]
[1732123303243,3.06,233.41,233.26,2.5808]
[1732123303638,2.1402,233.35,233.29,2.1407]
[1732123303833,3.06,233.41,233.26,2.5808]
[1732123304533,2.1402,233.36,233.3,2.1406]
[1732123304736,2.1402,233.36,233.26,2.5808]
[1732123305244,2.14,233.37,233.31,2.1406]
[1732123305432,3.06,233.41,233.31,2.1406]
[1732123306047,32.0984,233.45,233.25,27.50871985]
[1732123306240,32.0984,233.45,233.29,27.50871985]
[1732123306241,3.06,233.44,233.29,27.50871985]
[1732123307047,2.1398,233.39,233.34,2.1402]
[1732123307236,3.06,233.44,233.3,16.90496286]
[1732123307538,2.1394,233.44,233.34,2.1402]
[1732123307739,3.06,233.45,233.31,2.617]
[1732123308439,2.1398,233.4,233.35,2.1401]
[1732123308642,3.06,233.45,233.3,16.90496286]
[1732123308940,3.06,233.45,233.26,19.96496286]
[1732123309442,3.06,233.45,233.3,16.90496286]
[1732123309640,3.06,233.45,233.26,16.90496286]
[1732123309948,3.06,233.45,233.32,2.1404]
[1732123310136,3.06,233.45,233.26,16.90496286]
[1732123310336,2.14,233.38,233.33,2.1403]
[1732123310840,3.06,233.45,233.26,16.90496286]
[1732123311347,2.1398,233.39,233.31,2.1405]
[1732123311545,3.06,233.38,233.25,18.23336286]
[1732123312344,2.14,233.37,233.32,2.1405]
[1732123312646,3.06,233.38,233.25,18.23336286]
[1732123313051,5.1999,233.38,233.25,18.23336286]
[1732123313542,3.06,233.38,233.29,16.90496286]
[1732123314043,3.06,233.42,233.3,1.2376]
[1732123315246,2.1398,233.4,233.3,1.2376]
[1732123315443,3.06,233.42,233.3,1.2376]
[1732123316045,3.06,233.42,233.29,16.90496286]
[1732123316848,3.06,233.42,233.32,2.1405]
[1732123317749,2.1403,233.34,233.3,2.1406]
[1732123317945,3.06,233.42,233.25,16.90496286]
[1732123319051,2.1403,233.35,233.3,2.1406]
[1732123319253,5.2003,233.35,233.3,2.1406]
[1732123319449,2.1403,233.34,233.3,2.1406]
[1732123319649,3.06,233.35,233.29,2.1407]
[1732123319955,2.1407,233.3,233.23,1.3294]
[1732123320445,3.06,233.35,233.23,1.3294]
[1732123320751,3.06,233.35,233.25,16.90496286]
[1732123321057,3.06,233.35,233.3,2.1406]
[1732123321346,3.06,233.35,233.23,1.3294]
[1732123322051,2.96,233.35,233.25,16.90496286]
[1732123322349,2.96,233.35,233.23,1.3294]
[1732123322852,2.1406,233.31,233.23,1.3294]
[1732123323052,2.96,233.35,233.23,1.3294]
[1732123323757,2.1408,233.29,233.24,2.1412]
[1732123323946,2.96,233.28,233.2,1.299]
[1732123324144,2.96,233.27,233.17,1.2236]
[1732123324344,2.96,233.26,233.17,3.3654]
[1732123324545,2.96,233.25,233.17,1.2236]
[1732123325549,2.96,233.25,233.13,16.90496286]
[1732123326549,2.96,233.26,233.17,16.90496286]
[1732123326855,2.96,233.28,233.17,16.90496286]
[1732123327158,2.96,233.3,233.17,16.90496286]
[1732123327648,2.1408,233.29,233.24,2.1411]
[1732123328048,2.96,233.3,233.17,16.90496286]
[1732123328246,2.1413,233.23,233.18,2.1417]
[1732123328648,2.96,233.3,233.13,16.90496286]
[1732123329945,2.96,233.3,233.18,2.1417]
[1732123330346,2.96,233.3,233.13,16.90496286]